[Event "Commonwealth Open 2019"]
[Site "Delhi"]
[Date "2019.07.05"]
[Round "7.9"]
[White "Laxman, R.R."]
[Black "Krishna, C R G"]
[Result "1/2-1/2"]
[ECO "A89"]
[WhiteElo "2437"]
[BlackElo "2481"]
[Annotator "ChessBase"]
[PlyCount "170"]
[EventDate "2019.06.30"]
[EventType "swiss"]
[EventCountry "IND"]
[SourceTitle "playchess.com"]
[Source "ChessBase"]
[SourceQuality "1"]
[TimeControl "5400+30"]

1. d4 {[%emt 0:00:00]} f5 {[%emt 0:00:00]} 2. g3 {[%emt 0:00:54]} Nf6 {[%emt 0:00:06]} 3. Bg2 {[%emt 0:00:04]} g6 {[%emt 0:00:07]} 4. Nf3 {[%emt 0:00:50]} Bg7 {[%emt 0:00:07]} 5. O-O {[%emt 0:00:15]} O-O {[%emt 0:00:07]} 6. c4 {[%emt 0:01:38]} d6 {[%emt 0:00:08]} 7. Nc3 {[%emt 0:01:56]} Nc6 {[%emt 0:00:47]} 8. Nd5 {[%emt 0:02:14]} e6 {[%emt 0:21:34]} 9. Nxf6+ {[%emt 0:00:15]} Qxf6 {[%emt 0:00:03]} 10. Bg5 {[%emt 0:09:24]} Qf7 {[%emt 0:00:01]} 11. d5 {[%emt 0:00:27]} Nd8 {[%emt 0:16:13]} 12. Qd2 {[%emt 0:04:53]} e5 {[%emt 0:03:26]} 13. Bh6 {[%emt 0:01:02]} Qe7 {[%emt 0:17:28]} 14. Bxg7 {[%emt 0:00:17]} Kxg7 {[%emt 0:00:01]} 15. c5 {[%emt 0:02:36]} dxc5 {[%emt 0:04:44]} 16. Qc3 {[%emt 0:00:11]} Nf7 {[%emt 0:00:05]} 17. Rfc1 {[%emt 0:00:28]} Bd7 {[%emt 0:14:24]} 18. Qxc5 {[%emt 0:00:19]} Qxc5 {[%emt 0:00:06]} 19. Rxc5 {[%emt 0:00:04]} Rac8 {[%emt 0:00:30]} 20. b4 {[%emt 0:07:24]} b6 {[%emt 0:06:00]} 21. Rc3 {[%emt 0:04:09]} c6 {[%emt 0:00:27]} 22. Ra3 {[%emt 0:09:14]} cxd5 {[%emt 0:03:11]} 23. Rxa7 {[%emt 0:00:09]} Rfd8 {[%emt 0:00:07]} 24. Rd1 {[%emt 0:00:08]} d4 {[%emt 0:05:53]} 25. h4 {[%emt 0:03:38]} Kf6 {[%emt 0:02:15]} 26. Ra6 {[%emt 0:03:58]} Be6 {[%emt 0:04:05]} 27. Rxb6 {[%emt 0:00:17]} Rb8 {[%emt 0:00:01]} 28. Rxb8 {[%emt 0:00:27]} Rxb8 {[%emt 0:00:00]} 29. a3 {[%emt 0:00:01]} Nd6 {[%emt 0:00:50]} 30. e3 {[%emt 0:00:28]} Nb5 {[%emt 0:00:06]} 31. exd4 {[%emt 0:00:48]} exd4 {[%emt 0:00:06]} 32. Ra1 {[%emt 0:01:19]} d3 {[%emt 0:01:52]} 33. Bf1 {[%emt 0:04:22]} Rd8 {[%emt 0:00:23]} 34. Rd1 {[%emt 0:00:10]} Bc4 {[%emt 0:01:13]} 35. a4 {[%emt 0:00:06]} Nd4 {[%emt 0:00:33]} 36. Nxd4 {[%emt 0:04:03]} Rxd4 {[%emt 0:00:02]} 37. f4 {[%emt 0:00:14]} d2 {[%emt 0:00:58]} 38. Bxc4 {[%emt 0:00:06]} Rxc4 {[%emt 0:00:01]} 39. Rxd2 {[%emt 0:00:08]} Rxb4 {[%emt 0:00:00]} 40. Ra2 {[%emt 0:00:08]} Rb6 {[%emt 0:00:12]} 41. Kf2 {[%emt 0:00:08]} Ke6 {[%emt 0:00:01]} 42. a5 {[%emt 0:00:25]} Ra6 {[%emt 0:00:01]} 43. Ke3 {[%emt 0:00:45]} Kd5 {[%emt 0:00:13]} 44. Kd3 {[%emt 0:00:04]} Kc5 {[%emt 0:01:06]} 45. Kc3 {[%emt 0:00:20]} Rc6 {[%emt 0:02:26]} 46. a6 {[%emt 0:05:45]} Kb6+ {[%emt 0:00:01]} 47. Kd4 {[%emt 0:00:06]} Ka7 {[%emt 0:00:05]} 48. Ra3 {[%emt 0:00:12]} Re6 {[%emt 0:00:20]} 49. Re3 {[%emt 0:01:36]} Rd6+ {[%emt 0:01:05]} 50. Ke5 {[%emt 0:00:47]} Rxa6 {[%emt 0:00:10]} 51. Rd3 {[%emt 0:00:05]} Kb7 {[%emt 0:01:02]} 52. Rd7+ {[%emt 0:00:10]} Kc8 {[%emt 0:00:01]} 53. Rxh7 {[%emt 0:00:08]} Ra3 {[%emt 0:00:59]} 54. h5 {[%emt 0:02:39]} gxh5 {[%emt 0:00:17]} 55. Rg7 {[%emt 0:00:16]} Kd8 {[%emt 0:00:42]} 56. Kf6 {[%emt 0:01:52]} Ke8 {[%emt 0:00:42]} 57. Rg8+ {[%emt 0:00:04]} Kd7 {[%emt 0:00:03]} 58. Kf7 {[%emt 0:01:24]} Rf3 {[%emt 0:01:02]} 59. Rg5 {[%emt 0:00:12]} h4 {[%emt 0:00:31]} 60. gxh4 {[%emt 0:00:03]} Rxf4 {[%emt 0:00:04]} 61. h5 {[%emt 0:00:05]} Rf1 {[%emt 0:00:56]} 62. h6 {[%emt 0:00:17]} Rh1 {[%emt 0:00:06]} 63. Kg6 {[%emt 0:00:55]} f4 64. Rf5 {[%emt 0:07:58]} Rg1+ {[%emt 0:00:56]} 65. Kf6 {[%emt 0:00:06]} Rh1 {[%emt 0:00:35]} 66. Kg5 {[%emt 0:00:08]} Ke7 {[%emt 0:00:32]} 67. Rxf4 {[%emt 0:00:28]} Rg1+ {[%emt 0:00:08]} 68. Kh5 {[%emt 0:00:09]} Rh1+ {[%emt 0:00:07]} 69. Kg6 {[%emt 0:00:06]} Rg1+ {[%emt 0:00:10]} 70. Kh7 {[%emt 0:00:10]} Rg2 {[%emt 0:00:44]} 71. Kh8 {[%emt 0:00:11]} Rh2 {[%emt 0:01:32]} 72. Kh7 {[%emt 0:00:13]} Rg2 {[%emt 0:00:06]} 73. Ra4 {[%emt 0:00:20]} Kf7 {[%emt 0:00:17]} 74. Ra7+ {[%emt 0:00:03]} Kf8 {[%emt 0:00:05]} 75. Rg7 {[%emt 0:00:05]} Rf2 {[%emt 0:00:22]} 76. Rg5 {[%emt 0:00:11]} Kf7 {[%emt 0:00:14]} 77. Rg7+ {[%emt 0:00:11]} Kf8 {[%emt 0:00:06]} 78. Kh8 {[%emt 0:00:17]} Rh2 {[%emt 0:00:58]} 79. Rg6 {[%emt 0:00:04]} Rf2 {[%emt 0:00:24]} 80. Kh7 {[%emt 0:01:04]} Kf7 {[%emt 0:00:17]} 81. Ra6 {[%emt 0:00:20]} Rg2 {[%emt 0:01:18]} 82. Ra7+ {[%emt 0:00:16]} Kf8 {[%emt 0:00:06]} 83. Ra1 {[%emt 0:00:04]} Rf2 {[%emt 0:00:05]} 84. Rg1 {[%emt 0:00:21]} Kf7 {[%emt 0:00:09]} 85. Kh8 {[%emt 0:00:15]} Kf8 {[%emt 0:00:42]} 1/2-1/2

[Event "Commonwealth Open 2019"]
[Site "Delhi"]
[Date "2019.07.05"]
[Round "7.10"]
[White "Karthikeyan, P.."]
[Black "Sangma, Rahul"]
[Result "1-0"]
[ECO "A50"]
[WhiteElo "2445"]
[BlackElo "2298"]
[Annotator "NA"]
[PlyCount "48"]
[EventDate "2019.06.30"]
[EventType "swiss"]
[EventCountry "IND"]
[SourceTitle "playchess.com"]
[Source "ChessBase"]
[SourceQuality "1"]
[TimeControl "5400+30"]

1. d4 {[%emt 0:01:09]} Nf6 {[%emt 0:05:44]} 2. c4 {[%emt 0:00:07]} Nc6 {[%emt 0:00:13]} 3. Nc3 {[%emt 0:00:19]} e6 {[%emt 0:00:06]} 4. a3 {[%emt 0:03:30]} d6 {[%emt 0:00:39]} 5. e4 {[%emt 0:00:03]} g6 {[%emt 0:00:06]} 6. f4 {[%emt 0:00:13]} e5 {[%emt 0:00:49]} 7. dxe5 {[%emt 0:04:01]} dxe5 {[%emt 0:00:03]} 8. Qxd8+ {[%emt 0:00:08]} Kxd8 {[%emt 0:03:56]} 9. fxe5 {[%emt 0:13:37]} Ng4 {[%emt 0:01:40]} 10. Nf3 {[%emt 0:01:52]} Be6 {[%emt 0:09:30]} 11. Bg5+ {[%emt 0:03:52]} Be7 {[%emt 0:01:08]} 12. Bf4 {[%emt 0:03:04]} Bc5 {[%emt 0:01:14]} 13. h3 {[%emt 0:21:19]} Ne3 {[%emt 0:04:11]} 14. Na4 {[%emt 0:01:21]} Bd4 {[%emt 0:21:29]} 15. Nxd4 {[%emt 0:07:01]} Nxd4 {[%emt 0:00:23]} 16. Bxe3 {[%emt 0:05:04]} Nc2+ {[%emt 0:00:03]} 17. Kd2 {[%emt 0:00:04]} Nxa1 {[%emt 0:00:05]} 18. Kc3 {[%emt 0:00:25]} b6 {[%emt 0:01:56]} 19. Be2 {[%emt 0:05:20]} Bd7 {[%emt 0:00:07]} 20. b3 {[%emt 0:00:18]} Nxb3 {[%emt 0:00:18]} 21. Kxb3 {[%emt 0:00:03]} c6 {[%emt 0:01:34]} 22. Bg5+ {[%emt 0:01:01]} Kc7 {[%emt 0:00:19]} 23. Be7 {[%emt 0:00:19]} h5 {[%emt 0:00:52]} 24. Bd6+ {[%emt 0:00:16]} Kb7 {[%emt 0:09:36]} 1-0

[Event "Commonwealth Open 2019"]
[Site "Delhi"]
[Date "2019.07.05"]
[Round "7.11"]
[White "Nitin, S.."]
[Black "Divya, Deshmukh"]
[Result "1/2-1/2"]
[ECO "A05"]
[WhiteElo "2398"]
[BlackElo "2414"]
[Annotator "NA"]
[PlyCount "90"]
[EventDate "2019.06.30"]
[EventType "swiss"]
[EventCountry "IND"]
[SourceTitle "playchess.com"]
[Source "ChessBase"]
[SourceQuality "1"]
[TimeControl "5400+30"]

1. Nf3 {[%emt 0:00:08]} Nf6 {[%emt 0:00:00]} 2. g3 {[%emt 0:00:08]} d5 {[%emt 0:00:00]} 3. Bg2 {[%emt 0:00:07]} Bf5 {[%emt 0:00:00]} 4. O-O {[%emt 0:00:12]} e6 {[%emt 0:00:01]} 5. d3 {[%emt 0:00:11]} h6 {[%emt 0:00:03]} 6. Nfd2 {[%emt 0:00:11]} c6 {[%emt 0:00:35]} 7. e4 {[%emt 0:00:19]} dxe4 {[%emt 0:01:29]} 8. dxe4 {[%emt 0:00:17]} Bg6 {[%emt 0:02:25]} 9. Nc3 {[%emt 0:00:59]} Be7 {[%emt 0:00:17]} 10. Qe2 {[%emt 0:02:12]} O-O {[%emt 0:00:22]} 11. Nc4 {[%emt 0:01:34]} Nbd7 {[%emt 0:00:45]} 12. a4 {[%emt 0:00:28]} Qc7 {[%emt 0:00:40]} 13. h3 {[%emt 0:02:09]} Rac8 {[%emt 0:01:25]} 14. b3 {[%emt 0:07:32]} e5 {[%emt 0:06:05]} 15. Kh2 {[%emt 0:10:50]} Bc5 {[%emt 0:06:51]} 16. Bb2 {[%emt 0:04:42]} Rfe8 {[%emt 0:04:50]} 17. Rad1 {[%emt 0:02:10]} Bd4 {[%emt 0:02:27]} 18. f3 {[%emt 0:12:46]} Rcd8 {[%emt 0:08:53]} 19. Qe1 {[%emt 0:10:46]} Nc5 {[%emt 0:08:25]} 20. Ba3 {[%emt 0:00:38]} Ne6 {[%emt 0:00:22]} 21. Ne2 {[%emt 0:01:17]} Bc5 {[%emt 0:07:01]} 22. Bxc5 {[%emt 0:00:39]} Rxd1 {[%emt 0:00:37]} 23. Qxd1 {[%emt 0:00:09]} Nxc5 {[%emt 0:00:02]} 24. Qa1 {[%emt 0:01:00]} b5 {[%emt 0:02:56]} 25. Ne3 {[%emt 0:04:08]} a6 {[%emt 0:05:33]} 26. Qc3 {[%emt 0:03:46]} Qa7 {[%emt 0:02:59]} 27. Rd1 {[%emt 0:01:52]} bxa4 {[%emt 0:03:57]} 28. b4 {[%emt 0:01:04]} Ncd7 {[%emt 0:00:15]} 29. Ra1 {[%emt 0:02:34]} Nb6 {[%emt 0:06:03]} 30. Nc1 {[%emt 0:00:22]} Qd7 {[%emt 0:03:59]} 31. Nd3 {[%emt 0:02:25]} Qd4 {[%emt 0:01:41]} 32. Nd1 {[%emt 0:03:44]} Nfd7 {[%emt 0:01:35]} 33. Qxd4 {[%emt 0:08:27]} exd4 {[%emt 0:00:16]} 34. g4 {[%emt 0:02:56]} Ra8 {[%emt 0:07:49]} 35. N1b2 {[%emt 0:02:19]} f6 {[%emt 0:04:36]} 36. Nxa4 {[%emt 0:00:28]} Nxa4 {[%emt 0:00:57]} 37. Rxa4 {[%emt 0:00:03]} Nb6 {[%emt 0:00:47]} 38. Ra5 {[%emt 0:00:34]} Nc4 {[%emt 0:00:40]} 39. Rc5 {[%emt 0:00:35]} Ne3 {[%emt 0:00:02]} 40. Rxc6 {[%emt 0:00:30]} a5 {[%emt 0:00:04]} 41. b5 {[%emt 0:06:53]} Be8 {[%emt 0:00:52]} 42. Ra6 {[%emt 0:00:12]} Rb8 {[%emt 0:03:34]} 43. Rxa5 {[%emt 0:02:25]} Nxc2 {[%emt 0:02:00]} 44. Ra2 {[%emt 0:01:46]} Ne3 {[%emt 0:00:03]} 45. Ra4 {[%emt 0:00:36]} Nc2 {[%emt 0:05:15]} 1/2-1/2

[Event "Commonwealth Open 2019"]
[Site "Delhi"]
[Date "2019.07.05"]
[Round "7.12"]
[White "Ajay Karthikeyan"]
[Black "Tania, Sachdev"]
[Result "0-1"]
[ECO "A45"]
[WhiteElo "2216"]
[BlackElo "2401"]
[Annotator "NA"]
[PlyCount "67"]
[EventDate "2019.06.30"]
[EventType "swiss"]
[EventCountry "IND"]
[SourceTitle "playchess.com"]
[Source "ChessBase"]
[SourceQuality "1"]
[TimeControl "5400+30"]

1. d4 {[%emt 0:03:22]} Nf6 {[%emt 0:01:20]} 2. Bf4 {[%emt 0:00:18]} d5 {[%emt 0:00:09]} 3. e3 {[%emt 0:00:03]} e6 {[%emt 0:00:04]} 4. Nf3 {[%emt 0:00:03]} Bd6 {[%emt 0:00:04]} 5. Bg3 {[%emt 0:00:03]} c5 {[%emt 0:00:20]} 6. c3 {[%emt 0:00:01]} Qc7 {[%emt 0:00:16]} 7. dxc5 {[%emt 0:00:22]} Bxg3 {[%emt 0:01:48]} 8. hxg3 {[%emt 0:00:07]} Qxc5 {[%emt 0:00:04]} 9. Nbd2 {[%emt 0:00:04]} Nc6 {[%emt 0:01:18]} 10. Bd3 {[%emt 0:00:30]} Bd7 {[%emt 0:08:13]} 11. Qe2 {[%emt 0:00:35]} O-O-O {[%emt 0:04:34]} 12. O-O {[%emt 0:05:05]} Kb8 {[%emt 0:09:00]} 13. a4 {[%emt 0:14:01]} h5 {[%emt 0:02:32]} 14. Rac1 {[%emt 0:07:58]} Ng4 {[%emt 0:07:02]} 15. e4 {[%emt 0:12:07]} Qd6 {[%emt 0:07:06]} 16. Rfe1 {[%emt 0:01:53]} h4 {[%emt 0:12:34]} 17. gxh4 {[%emt 0:06:51]} f6 {[%emt 0:18:40]} 18. g3 {[%emt 0:06:38]} g5 {[%emt 0:06:41]} 19. hxg5 {[%emt 0:02:25]} fxg5 {[%emt 0:04:24]} 20. Kg2 {[%emt 0:07:38]} Rdf8 {[%emt 0:06:47]} 21. Rh1 {[%emt 0:07:26]} Rhg8 {[%emt 0:00:05]} 22. Rcf1 {[%emt 0:00:50]} Rg7 {[%emt 0:04:31]} 23. Nd4 {[%emt 0:04:28]} Nce5 {[%emt 0:02:21]} 24. Bb5 {[%emt 0:01:13]} Bc8 {[%emt 0:01:12]} 25. f3 {[%emt 0:03:40]} Nf6 {[%emt 0:00:02]} 26. Re1 {[%emt 0:02:05]} Re7 {[%emt 0:00:01]} 27. a5 {[%emt 0:00:21]} a6 {[%emt 0:00:33]} 28. Ba4 {[%emt 0:00:21]} Qc7 {[%emt 0:00:04]} 29. Qe3 {[%emt 0:09:41]} Qxa5 {[%emt 0:00:11]} 30. exd5 {[%emt 0:00:16]} exd5 {[%emt 0:00:20]} 31. Qxg5 {[%emt 0:00:02]} Qc7 {[%emt 0:02:35]} 32. Rh6 {[%emt 0:04:32]} Rg8 {[%emt 0:00:10]} 33. Qxf6 {[%emt 0:00:40]} Nd3 {[%emt 0:00:01]} 34. Qd6 {[%emt 0:01:21]} 0-1

[Event "Commonwealth Open 2019"]
[Site "Delhi"]
[Date "2019.07.05"]
[Round "7.13"]
[White "Shyaamnikhil, P."]
[Black "Bhambure, Shantanu"]
[Result "1/2-1/2"]
[ECO "B92"]
[WhiteElo "2434"]
[BlackElo "2248"]
[Annotator "NA"]
[PlyCount "41"]
[EventDate "2019.06.30"]
[EventType "swiss"]
[EventCountry "IND"]
[SourceTitle "playchess.com"]
[Source "ChessBase"]
[SourceQuality "1"]
[TimeControl "5400+30"]

1. e4 {[%emt 0:00:00]} c5 {[%emt 0:00:00]} 2. Nf3 {[%emt 0:00:00]} d6 {[%emt 0:00:00]} 3. d4 {[%emt 0:00:08]} cxd4 {[%emt 0:00:00]} 4. Nxd4 {[%emt 0:00:03]} Nf6 {[%emt 0:00:00]} 5. Nc3 {[%emt 0:00:05]} a6 {[%emt 0:00:00]} 6. Be2 {[%emt 0:00:05]} e5 {[%emt 0:00:19]} 7. Nf3 {[%emt 0:00:06]} Be7 {[%emt 0:00:56]} 8. Bg5 {[%emt 0:00:07]} Nbd7 {[%emt 0:00:58]} 9. a4 {[%emt 0:00:48]} Qb6 {[%emt 0:01:57]} 10. Qc1 {[%emt 0:09:22]} h6 {[%emt 0:05:11]} 11. Be3 {[%emt 0:02:24]} Qc6 {[%emt 0:01:57]} 12. Nd2 {[%emt 0:00:21]} Nc5 {[%emt 0:02:16]} 13. Bf3 {[%emt 0:03:10]} Be6 {[%emt 0:04:14]} 14. O-O {[%emt 0:02:23]} O-O {[%emt 0:02:01]} 15. Rd1 {[%emt 0:07:01]} b5 {[%emt 0:05:13]} 16. Bxc5 {[%emt 0:01:04]} Qxc5 {[%emt 0:04:18]} 17. Nb3 {[%emt 0:02:57]} Qb6 {[%emt 0:04:14]} 18. axb5 {[%emt 0:02:50]} axb5 {[%emt 0:00:11]} 19. Qd2 {[%emt 0:02:16]} b4 {[%emt 0:04:21]} 20. Ne2 {[%emt 0:02:13]} Nh7 {[%emt 0:06:48]} 21. Ng3 {[%emt 0:00:46]} 1/2-1/2

[Event "Commonwealth Open 2019"]
[Site "Delhi"]
[Date "2019.07.05"]
[Round "7.14"]
[White "Arpita, Mukherjee"]
[Black "Kunte, Abhijit"]
[Result "0-1"]
[ECO "C77"]
[WhiteElo "2248"]
[BlackElo "2478"]
[Annotator "ChessBase"]
[PlyCount "114"]
[EventDate "2019.06.30"]
[EventType "swiss"]
[EventCountry "IND"]
[SourceTitle "playchess.com"]
[Source "ChessBase"]
[SourceQuality "1"]
[TimeControl "5400+30"]

1. e4 {[%emt 0:00:24]} e5 {[%emt 0:03:40]} 2. Nf3 {[%emt 0:00:15]} Nc6 {[%emt 0:00:06]} 3. Bb5 {[%emt 0:00:06]} a6 {[%emt 0:00:08]} 4. Ba4 {[%emt 0:00:09]} Nf6 {[%emt 0:00:17]} 5. d3 {[%emt 0:00:07]} d6 {[%emt 0:00:52]} 6. c3 {[%emt 0:00:13]} Be7 {[%emt 0:01:19]} 7. O-O {[%emt 0:00:42]} O-O {[%emt 0:00:11]} 8. Re1 {[%emt 0:00:25]} Re8 {[%emt 0:02:28]} 9. Nbd2 {[%emt 0:02:00]} Bf8 {[%emt 0:01:27]} 10. Nf1 {[%emt 0:01:54]} h6 {[%emt 0:00:35]} 11. b4 {[%emt 0:08:45]} b5 {[%emt 0:07:15]} 12. Bc2 {[%emt 0:02:32]} Bb7 {[%emt 0:04:22]} 13. Ng3 {[%emt 0:03:18]} g6 {[%emt 0:09:11]} 14. h4 {[%emt 0:17:42]} Bc8 {[%emt 0:04:50]} 15. Nh2 {[%emt 0:06:58]} h5 {[%emt 0:01:38]} 16. a4 {[%emt 0:02:23]} Rb8 {[%emt 0:01:20]} 17. Bb3 {[%emt 0:07:49]} Nh7 {[%emt 0:04:23]} 18. axb5 {[%emt 0:03:02]} axb5 {[%emt 0:00:05]} 19. Nf3 {[%emt 0:05:54]} Be6 {[%emt 0:00:12]} 20. Ra5 {[%emt 0:00:51]} Qc8 {[%emt 0:06:00]} 21. Ra1 {[%emt 0:09:55]} Qd7 {[%emt 0:02:52]} 22. Nf1 {[%emt 0:06:13]} d5 {[%emt 0:04:46]} 23. exd5 {[%emt 0:01:40]} Bxd5 {[%emt 0:00:06]} 24. Bxd5 {[%emt 0:00:11]} Qxd5 {[%emt 0:00:06]} 25. Ra6 {[%emt 0:01:01]} Rbd8 {[%emt 0:02:00]} 26. Ne3 {[%emt 0:03:41]} Qd7 {[%emt 0:00:11]} 27. Qb3 {[%emt 0:00:09]} Re6 {[%emt 0:00:06]} 28. Qa2 {[%emt 0:04:50]} Bg7 {[%emt 0:09:44]} 29. Ra8 {[%emt 0:03:23]} Rd6 {[%emt 0:00:42]} 30. Nd2 {[%emt 0:02:23]} Rxd3 {[%emt 0:02:38]} 31. Ne4 {[%emt 0:00:06]} Bf8 {[%emt 0:00:13]} 32. Rxd8 {[%emt 0:00:49]} Nxd8 {[%emt 0:00:15]} 33. Bb2 {[%emt 0:04:45]} Qc6 {[%emt 0:04:52]} 34. Ng3 {[%emt 0:01:22]} Ne6 {[%emt 0:00:28]} 35. Rd1 {[%emt 0:00:58]} Rxd1+ {[%emt 0:01:28]} 36. Nxd1 {[%emt 0:00:01]} Bh6 {[%emt 0:00:24]} 37. c4 {[%emt 0:00:36]} Nf4 {[%emt 0:05:25]} 38. Ne3 {[%emt 0:00:36]} Nd3 {[%emt 0:00:05]} 39. cxb5 {[%emt 0:00:50]} Qxb5 {[%emt 0:00:06]} 40. Bc3 {[%emt 0:00:24]} Bxe3 {[%emt 0:01:37]} 41. fxe3 {[%emt 0:00:01]} Nf6 {[%emt 0:00:15]} 42. Qa8+ {[%emt 0:00:55]} Kg7 {[%emt 0:00:09]} 43. Ne4 {[%emt 0:00:30]} Qd5 {[%emt 0:02:18]} 44. Qxd5 {[%emt 0:00:35]} Nxd5 {[%emt 0:00:07]} 45. b5 {[%emt 0:00:28]} f5 {[%emt 0:01:09]} 46. Nf2 {[%emt 0:00:01]} Nxc3 {[%emt 0:00:06]} 47. Nxd3 {[%emt 0:00:04]} Kf6 {[%emt 0:00:20]} 48. Nc5 {[%emt 0:00:12]} Ke7 {[%emt 0:00:33]} 49. e4 {[%emt 0:00:19]} Nxb5 {[%emt 0:01:38]} 50. exf5 {[%emt 0:00:44]} gxf5 {[%emt 0:00:05]} 51. Kf2 {[%emt 0:00:02]} Kd6 {[%emt 0:00:07]} 52. Nd3 {[%emt 0:00:08]} c5 {[%emt 0:00:11]} 53. Ke3 {[%emt 0:00:01]} Kd5 {[%emt 0:00:36]} 54. Nc1 {[%emt 0:00:16]} Nd4 {[%emt 0:00:48]} 55. Kd3 {[%emt 0:00:16]} c4+ {[%emt 0:00:24]} 56. Kc3 {[%emt 0:00:02]} f4 {[%emt 0:00:28]} 57. Na2 {[%emt 0:00:06]} Kc5 {[%emt 0:00:14] Kxd4+} 0-1

[Event "Commonwealth Open 2019"]
[Site "Delhi"]
[Date "2019.07.05"]
[Round "7.15"]
[White "Varshini, V."]
[Black "Thejkumar, M. S."]
[Result "1/2-1/2"]
[ECO "B18"]
[WhiteElo "2087"]
[BlackElo "2458"]
[Annotator "ChessBase"]
[PlyCount "129"]
[EventDate "2019.06.30"]
[EventType "swiss"]
[EventCountry "IND"]
[SourceTitle "playchess.com"]
[Source "ChessBase"]
[SourceQuality "1"]
[TimeControl "5400+30"]

1. e4 {[%emt 0:00:00]} c6 {[%emt 0:00:00]} 2. d4 {[%emt 0:00:00]} d5 {[%emt 0:00:00]} 3. Nc3 {[%emt 0:00:09]} dxe4 {[%emt 0:00:00]} 4. Nxe4 {[%emt 0:00:11]} Bf5 {[%emt 0:00:06]} 5. Ng3 {[%emt 0:00:08]} Bg6 {[%emt 0:00:15]} 6. Bc4 {[%emt 0:00:35]} e6 {[%emt 0:00:27]} 7. N1e2 {[%emt 0:00:50]} Nf6 {[%emt 0:00:37]} 8. h4 {[%emt 0:03:13]} h6 {[%emt 0:00:18]} 9. Nf4 {[%emt 0:02:49]} Bh7 {[%emt 0:00:07]} 10. c3 {[%emt 0:02:17]} Nbd7 {[%emt 0:02:06]} 11. Ngh5 {[%emt 0:06:44]} Qc7 {[%emt 0:01:53]} 12. Nxf6+ {[%emt 0:05:13]} Nxf6 {[%emt 0:00:16]} 13. Nh5 {[%emt 0:01:57]} Nd5 {[%emt 0:02:22]} 14. Bxd5 {[%emt 0:10:09]} cxd5 {[%emt 0:04:32]} 15. Bf4 {[%emt 0:01:10]} Qc4 {[%emt 0:04:04]} 16. Be5 {[%emt 0:13:24]} f6 {[%emt 0:28:51]} 17. Bh2 {[%emt 0:13:03]} Bf5 {[%emt 0:18:21]} 18. Ng3 {[%emt 0:03:34]} Bg6 {[%emt 0:01:18]} 19. Qe2 {[%emt 0:02:49]} Qxe2+ {[%emt 0:05:38]} 20. Nxe2 {[%emt 0:00:10]} Kf7 {[%emt 0:01:24]} 21. Kd2 {[%emt 0:01:59]} b5 {[%emt 0:04:29]} 22. Nf4 {[%emt 0:04:04]} Bf5 {[%emt 0:01:47]} 23. Nd3 {[%emt 0:00:20]} a5 {[%emt 0:02:21]} 24. a4 {[%emt 0:04:08]} Bxd3 {[%emt 0:04:48]} 25. Kxd3 {[%emt 0:00:11]} b4 {[%emt 0:00:05]} 26. Rhc1 {[%emt 0:03:54]} Rc8 {[%emt 0:03:21]} 27. cxb4 {[%emt 0:07:02]} Bxb4 {[%emt 0:00:05]} 28. Bf4 {[%emt 0:00:12]} g5 {[%emt 0:01:26]} 29. hxg5 {[%emt 0:01:23]} hxg5 {[%emt 0:00:06]} 30. Rxc8 {[%emt 0:00:35]} Rxc8 {[%emt 0:00:20]} 31. Rc1 {[%emt 0:00:23]} Rh8 {[%emt 0:00:33]} 32. Bg3 {[%emt 0:02:09]} Kg6 {[%emt 0:00:41]} 33. f3 {[%emt 0:09:08]} Kf5 {[%emt 0:00:22]} 34. Ke3 {[%emt 0:00:50]} Rh7 {[%emt 0:04:01]} 35. Bc7 {[%emt 0:02:03]} g4 {[%emt 0:00:36]} 36. Rc6 {[%emt 0:00:33]} Rh1 {[%emt 0:06:16]} 37. Ra6 {[%emt 0:00:35]} gxf3 {[%emt 0:00:34]} 38. gxf3 {[%emt 0:00:25]} Ra1 {[%emt 0:00:17]} 39. b3 {[%emt 0:00:32]} Rb1 {[%emt 0:00:28]} 40. Bxa5 {[%emt 0:00:28]} Rxb3+ {[%emt 0:00:06]} 41. Ke2 {[%emt 0:00:30]} Bxa5 {[%emt 0:00:27]} 42. Rxa5 {[%emt 0:00:05]} Kf4 {[%emt 0:00:19]} 43. Ra6 {[%emt 0:00:43]} Re3+ {[%emt 0:00:13]} 44. Kd2 {[%emt 0:00:05]} Kxf3 {[%emt 0:00:13]} 45. Rc6 {[%emt 0:00:52]} Re2+ {[%emt 0:00:43]} 46. Kd3 {[%emt 0:00:31]} f5 {[%emt 0:00:31]} 47. a5 {[%emt 0:00:45]} Ra2 {[%emt 0:00:51]} 48. a6 {[%emt 0:00:24]} Ra3+ {[%emt 0:00:58]} 49. Kc2 {[%emt 0:00:31]} Ke4 {[%emt 0:00:08]} 50. Kb2 {[%emt 0:00:30]} Ra5 {[%emt 0:00:44]} 51. Kc3 {[%emt 0:00:22]} e5 {[%emt 0:00:12]} 52. Re6 {[%emt 0:00:35]} Ra3+ {[%emt 0:00:14]} 53. Kb2 {[%emt 0:00:44]} Ra4 {[%emt 0:01:20]} 54. Kb3 {[%emt 0:00:26]} Ra5 {[%emt 0:00:25]} 55. Rxe5+ {[%emt 0:00:26]} Kxd4 {[%emt 0:00:09]} 56. Rxf5 {[%emt 0:00:06]} Rxa6 {[%emt 0:00:06]} 57. Kc2 {[%emt 0:00:09]} Kc4 {[%emt 0:00:19]} 58. Rf4+ {[%emt 0:00:46]} d4 {[%emt 0:00:04]} 59. Rf3 {[%emt 0:00:57]} Ra1 {[%emt 0:00:38]} 60. Kd2 {[%emt 0:00:26]} Ra2+ {[%emt 0:00:18]} 61. Kd1 {[%emt 0:00:24]} Rh2 {[%emt 0:00:27]} 62. Rg3 {[%emt 0:00:18]} Rh1+ {[%emt 0:01:51]} 63. Kd2 {[%emt 0:00:14]} Ra1 {[%emt 0:00:33]} 64. Rh3 {[%emt 0:00:13]} Ra2+ {[%emt 0:00:11]} 65. Kd1 {[%emt 0:00:08]} 1/2-1/2

[Event "Commonwealth Open 2019"]
[Site "Delhi"]
[Date "2019.07.05"]
[Round "7.15"]
[White "Varshini, V."]
[Black "Thejkumar, M. S."]
[Result "*"]
[ECO "B18"]
[WhiteElo "2087"]
[BlackElo "2458"]
[Annotator "ChessBase"]
[PlyCount "39"]
[EventDate "2019.06.30"]
[EventType "swiss"]
[EventCountry "IND"]
[SourceTitle "playchess.com"]
[Source "ChessBase"]
[SourceQuality "1"]
[TimeControl "5400+30"]

1. e4 {[%emt 0:00:00]} c6 {[%emt 0:00:00]} 2. d4 {[%emt 0:00:00]} d5 {[%emt 0:00:00]} 3. Nc3 {[%emt 0:00:09]} dxe4 {[%emt 0:00:00]} 4. Nxe4 {[%emt 0:00:11]} Bf5 {[%emt 0:00:06]} 5. Ng3 {[%emt 0:00:08]} Bg6 {[%emt 0:00:15]} 6. Bc4 {[%emt 0:00:35]} e6 {[%emt 0:00:27]} 7. N1e2 {[%emt 0:00:50]} Nf6 {[%emt 0:00:37]} 8. h4 {[%emt 0:03:13]} h6 {[%emt 0:00:18]} 9. Nf4 {[%emt 0:02:49]} Bh7 {[%emt 0:00:07]} 10. c3 {[%emt 0:02:17]} Nbd7 {[%emt 0:02:06]} 11. Ngh5 {[%emt 0:06:44]} Qc7 {[%emt 0:01:53]} 12. Nxf6+ {[%emt 0:05:13]} Nxf6 {[%emt 0:00:16]} 13. Nh5 {[%emt 0:01:57]} Nd5 {[%emt 0:02:22]} 14. Bxd5 {[%emt 0:10:09]} cxd5 {[%emt 0:04:32]} 15. Bf4 {[%emt 0:01:10]} Qc4 {[%emt 0:04:04]} 16. Be5 {[%emt 0:13:24]} f6 {[%emt 0:28:51]} 17. Bh2 {[%emt 0:13:03]} Bg6 {[%emt 0:19:09]} 18. Ng3 {[%emt 0:05:53]} O-O-O {[%emt 0:00:30]} 19. Qe2 {[%emt 0:00:30]} Qxe2+ {[%emt 0:05:38]} 20. Nxe2 {[%emt 0:00:10]} *